bitfinex/quotes_BTCUSD_20240827
["timestamp","ask_amount","ask_price","bid_price","bid_amount"]
[1724724970473,0.001224,63299.0,63298.0,2.03731556]
[1724724970681,0.001224,63299.0,63298.0,2.05031556]
[1724724971103,0.001224,63299.0,63298.0,2.06331556]
[1724724971342,0.001224,63299.0,63298.0,2.03731556]
[1724724971603,0.001224,63299.0,63298.0,2.05031556]
[1724724973049,0.001224,63299.0,63298.0,2.06331556]
[1724724974582,0.001224,63299.0,63298.0,2.05031556]
[1724724975004,0.001224,63299.0,63298.0,2.06431556]
[1724724975432,0.001224,63299.0,63298.0,2.05131556]
[1724724976651,0.001224,63299.0,63298.0,2.06531556]
[1724724979747,0.02598379,63299.0,63298.0,2.06531556]
[1724724981208,0.02598379,63299.0,63298.0,1.99941556]
[1724724984290,0.02598379,63299.0,63298.0,2.05991556]
[1724724985126,0.001224,63299.0,63298.0,2.05991556]
[1724724991988,0.0259835,63299.0,63298.0,2.05991556]
[1724724992196,0.0259835,63299.0,63298.0,1.74395056]
[1724724992404,0.0259835,63299.0,63298.0,1.99841556]
[1724724992601,0.0259835,63299.0,63298.0,0.75828571]
[1724724992808,0.0259835,63299.0,63298.0,0.660932]
[1724724993010,0.0259835,63299.0,63298.0,0.50195]
[1724724993208,0.4999235,63299.0,63298.0,0.50195]
[1724724993415,0.54729962,63299.0,63298.0,0.47395]
[1724724993641,0.4999235,63299.0,63298.0,0.47395]
[1724724993847,0.1839635,63299.0,63298.0,0.53846402]
[1724724994052,0.25502768,63299.0,63298.0,0.53846402]
[1724724994275,0.23135457,63299.0,63298.0,0.53046402]
[1724724994494,0.23135457,63299.0,63298.0,0.52346402]
[1724724994704,0.1839635,63299.0,63298.0,0.52346402]
[1724724995451,0.54730892,63299.0,63298.0,0.52346402]
[1724724995654,0.54730892,63299.0,63298.0,0.47595]
[1724724996232,0.54830892,63299.0,63298.0,0.47595]
[1724724996689,0.54730892,63299.0,63298.0,0.47595]
[1724724997099,0.54830892,63299.0,63298.0,0.47595]
[1724724997302,0.86426892,63299.0,63298.0,0.47595]
[1724724997507,0.8168835,63299.0,63298.0,0.47595]
[1724724997931,0.88794768,63299.0,63298.0,0.47595]
[1724724998341,0.8168835,63299.0,63298.0,0.47595]
[1724724999374,0.86424203,63299.0,63298.0,0.47595]
[1724725001284,0.8168835,63299.0,63298.0,0.47595]
[1724725001707,1.33638004,63299.0,63298.0,0.47595]
[1724725001927,1.41502736,63299.0,63298.0,0.47595]
[1724725002216,1.51502736,63299.0,63298.0,0.47595]
[1724725002625,1.41202151,63299.0,63298.0,0.47595]
[1724725005902,1.72798151,63299.0,63298.0,0.47595]
[1724725006716,1.72698151,63299.0,63298.0,0.47595]
[1724725007142,1.72698151,63299.0,63298.0,0.47695]
[1724725007355,1.81553425,63299.0,63298.0,0.47695]
[1724725007579,1.81553425,63299.0,63298.0,0.47495]
[1724725008031,1.81853425,63299.0,63298.0,0.47595]
[1724725008284,1.72998151,63299.0,63298.0,0.47595]
[1724725009236,1.87162618,63299.0,63298.0,0.47495]
[1724725009471,1.88162618,63299.0,63298.0,0.47595]
[1724725009993,1.73998151,63299.0,63298.0,0.47595]
[1724725010723,1.42402151,63299.0,63298.0,0.47595]
[1724725011330,1.49481868,63299.0,63298.0,0.47595]
[1724725011526,1.47121262,63299.0,63298.0,0.47595]
[1724725011956,1.44821311,63299.0,63298.0,0.47595]
[1724725012174,1.40102151,63299.0,63298.0,0.47595]
[1724725012397,1.40102151,63299.0,63298.0,0.45085107]
[1724725012398,1.98551148,63299.0,63298.0,0.45085107]
[1724725012613,1.96132467,63299.0,63298.0,0.45085107]
[1724725012838,2.10293212,63299.0,63298.0,0.45085107]
[1724725013065,1.96132467,63299.0,63298.0,0.45085107]
[1724725013263,2.12802467,63299.0,63298.0,0.45085107]
[1724725013505,2.11745635,63299.0,63298.0,0.45085107]
[1724725013923,2.25900419,63299.0,63298.0,0.45085107]
[1724725014130,2.43341635,63299.0,63298.0,0.45085107]
[1724725014975,3.98091635,63299.0,63298.0,0.45085107]
[1724725015233,4.12239944,63299.0,63298.0,0.45085107]
[1724725015459,3.80643944,63299.0,63298.0,0.45085107]
[1724725015674,3.66495635,63299.0,63298.0,0.45085107]
[1724725015893,3.78285772,63299.0,63298.0,0.45085107]
[1724725016127,3.66495635,63299.0,63298.0,0.45085107]
[1724725016542,3.84619672,63299.0,63298.0,0.45085107]
[1724725017011,3.72829535,63299.0,63298.0,0.45085107]
[1724725017229,3.84617,63299.0,63298.0,0.45085107]
[1724725018331,3.84616033,63299.0,63298.0,0.45085107]
[1724725018539,3.82258418,63299.0,63298.0,0.45085107]
[1724725019388,3.79900773,63299.0,63298.0,0.45085107]
[1724725019811,3.82258418,63299.0,63298.0,0.45085107]
[1724725021340,3.72829535,63299.0,63298.0,0.45085107]
[1724725021553,3.03486051,63299.0,63298.0,0.45085107]
[1724725021778,2.94852151,63299.0,63298.0,0.52595107]
[1724725023327,2.94852151,63299.0,63298.0,0.45085107]
[1724725023597,3.44361319,63299.0,63298.0,0.45085107]
[1724725023911,3.51432603,63299.0,63298.0,0.45085107]
[1724725024463,3.35819435,63299.0,63298.0,0.45085107]
[1724725024894,3.35821153,63299.0,63298.0,0.45085107]
[1724725026632,3.35822378,63299.0,63298.0,0.45085107]
[1724725026861,3.28748151,63299.0,63298.0,0.45085107]
[1724725027335,2.97152151,63299.0,63298.0,0.45085107]
[1724725028333,3.04226378,63299.0,63298.0,0.45085107]
[1724725028575,2.94852151,63299.0,63298.0,0.52595107]
[1724725029788,2.63256151,63299.0,63298.0,0.52595107]
[1724725030023,2.1604235,63299.0,63298.0,0.52595107]
[1724725030267,1.8444635,63299.0,63298.0,0.52595107]
[1724725030758,2.1604235,63299.0,63298.0,0.52595107]
[1724725030979,2.1604235,63299.0,63298.0,0.58635107]
[1724725031223,1.5864835,63299.0,63298.0,1.1200522]
[1724725031670,1.5864835,63299.0,63298.0,1.4360172]
[1724725031671,1.561724,63299.0,63298.0,1.4360172]
[1724725032157,1.561724,63299.0,63298.0,1.4350172]
[1724725032390,1.548724,63299.0,63298.0,1.1180522]
[1724725032674,1.553724,63299.0,63298.0,1.1190522]
[1724725032890,1.556724,63299.0,63298.0,1.1190522]
[1724725033315,1.551724,63299.0,63298.0,1.1180522]
[1724725033982,1.548724,63299.0,63298.0,1.1180522]
[1724725034274,1.548724,63299.0,63298.0,1.05929807]
[1724725034418,1.549724,63299.0,63298.0,1.05929807]
[1724725034845,1.549724,63299.0,63298.0,1.37526307]
[1724725037048,1.549724,63299.0,63298.0,1.38126307]
[1724725037714,1.548724,63299.0,63298.0,1.38126307]
[1724725038158,1.548724,63299.0,63298.0,1.38726307]
[1724725038817,1.548724,63299.0,63298.0,1.70322807]
[1724725039257,1.548724,63299.0,63298.0,1.38726307]
[1724725040113,1.548724,63299.0,63298.0,1.38816947]
[1724725043335,1.54853386,63299.0,63298.0,1.38816947]
[1724725046127,1.54853386,63299.0,63298.0,1.07220447]
[1724725047060,1.57329519,63299.0,63298.0,1.07220447]
[1724725048385,1.57329519,63299.0,63298.0,1.38816947]
[1724725051599,1.57329519,63299.0,63298.0,1.54434748]
[1724725051811,1.57329519,63299.0,63298.0,1.86031248]
[1724725052239,1.54853386,63299.0,63298.0,1.86031248]
[1724725054890,1.54853386,63299.0,63298.0,1.84831248]
[1724725055329,1.54853386,63299.0,63298.0,1.85731248]
[1724725055784,1.54853386,63299.0,63298.0,1.86531248]
[1724725055995,1.54853386,63299.0,63298.0,1.85631248]
[1724725056421,1.54853386,63299.0,63298.0,1.86631248]
[1724725057022,1.54853386,63299.0,63298.0,1.85831248]
[1724725057852,1.54853386,63299.0,63298.0,1.86831248]
[1724725061119,1.54853386,63299.0,63298.0,1.39616947]
[1724725061760,1.5732947,63299.0,63298.0,1.39616947]
[1724725066768,1.5732947,63299.0,63298.0,1.71213447]
[1724725066964,1.5732947,63299.0,63298.0,1.39616947]
[1724725067500,1.5732947,63299.0,63298.0,1.71213447]
[1724725067927,1.5732947,63299.0,63298.0,1.39616947]
[1724725069212,1.5732947,63299.0,63298.0,1.71213447]
[1724725069423,1.5732947,63299.0,63298.0,1.39616947]
[1724725069826,1.5732947,63299.0,63298.0,1.71213447]
[1724725072187,1.5732947,63299.0,63298.0,1.80058464]
[1724725072959,1.5732947,63299.0,63298.0,1.48461964]
[1724725074197,1.5732947,63299.0,63298.0,1.39616947]
[1724725074408,1.5732947,63299.0,63298.0,1.40936947]
[1724725083268,1.5732947,63299.0,63298.0,1.38936947]
[1724725083479,1.5732947,63299.0,63298.0,1.40136947]
[1724725083900,1.5732947,63299.0,63298.0,1.08540447]
[1724725084107,1.5732947,63299.0,63298.0,1.40136947]
[1724725084325,1.5732947,63299.0,63298.0,1.08540447]
[1724725084557,1.5732947,63299.0,63298.0,1.40136947]
[1724725084811,1.5732947,63299.0,63298.0,1.38936947]
[1724725085025,1.5732947,63299.0,63298.0,1.39236947]
[1724725085252,1.5732947,63299.0,63298.0,1.07640447]
[1724725085911,1.54853386,63299.0,63298.0,1.07640447]
[1724725086506,1.54853386,63299.0,63298.0,1.07540447]
[1724725086944,1.54853386,63299.0,63298.0,1.07340447]
[1724725087308,1.54853386,63299.0,63298.0,1.07540447]
[1724725087515,1.54853386,63299.0,63298.0,1.07640447]
[1724725087845,1.54853386,63299.0,63298.0,0.60145747]
[1724725088057,1.75395006,63299.0,63298.0,0.45275747]
[1724725088292,2.02247386,63299.0,63298.0,0.45275747]
[1724725088843,2.33843386,63299.0,63298.0,0.45075747]
[1724725089741,2.33843386,63299.0,63298.0,0.44975747]
[1724725089943,2.33943386,63299.0,63298.0,0.44975747]
[1724725090148,2.34143386,63299.0,63298.0,0.44975747]
[1724725090358,2.34043386,63299.0,63298.0,0.44975747]
[1724725090567,2.34043386,63299.0,63298.0,0.49573322]
[1724725090568,2.34143386,63299.0,63298.0,0.49573322]
[1724725090766,2.33943386,63299.0,63298.0,0.49573322]
[1724725091191,2.34143386,63299.0,63298.0,0.49573322]
[1724725091603,2.45986911,63299.0,63298.0,0.49573322]
[1724725091813,2.34143386,63299.0,63298.0,0.49573322]
[1724725092052,2.34143386,63299.0,63298.0,0.45075747]
[1724725093508,2.43616046,63299.0,63298.0,0.45075747]
[1724725093924,2.43616046,63299.0,63298.0,0.53245747]
[1724725093925,1.70951386,63299.0,63298.0,0.53245747]
[1724725094128,1.75686783,63299.0,63298.0,0.59925747]
[1724725094330,1.70951386,63299.0,63298.0,0.65918322]
[1724725095150,1.70751386,63299.0,63298.0,0.65918322]
[1724725095588,1.70751386,63299.0,63298.0,0.59338322]
[1724725095792,1.70751386,63299.0,63298.0,0.51068322]
[1724725096012,2.06982241,63299.0,63298.0,0.51068322]
[1724725096224,2.02347386,63299.0,63298.0,0.51068322]
[1724725096652,1.70951386,63299.0,63298.0,0.51068322]
[1724725096881,1.71051386,63299.0,63298.0,0.51068322]
[1724725097133,1.54853386,63299.0,63298.0,0.51068322]
[1724725097559,1.54953386,63299.0,63298.0,0.51068322]
[1724725097765,1.70751386,63299.0,63298.0,0.51068322]
[1724725097971,1.70951386,63299.0,63298.0,0.51068322]
[1724725098179,1.70932372,63299.0,63298.0,0.51068322]
[1724725098830,1.70932372,63299.0,63298.0,0.50968322]
[1724725099072,1.59869227,63299.0,63298.0,0.51068322]
[1724725099278,1.55134372,63299.0,63298.0,0.59238322]
[1724725099504,1.55134372,63299.0,63298.0,0.65818322]
[1724725099757,1.54834372,63299.0,63298.0,0.65818322]
[1724725099979,1.55034372,63299.0,63298.0,0.65818322]
[1724725100182,1.55134372,63299.0,63298.0,0.65818322]
[1724725100382,1.55034372,63299.0,63298.0,0.65818322]
[1724725100621,1.54834372,63299.0,63298.0,0.65818322]
[1724725100832,1.55134372,63299.0,63298.0,0.65818322]
[1724725101336,1.55134372,63299.0,63298.0,0.81616522]
[1724725101544,1.55134372,63299.0,63298.0,0.65818322]
[1724725102184,1.55034372,63299.0,63298.0,0.65818322]
[1724725102416,1.55034372,63299.0,63298.0,0.81616522]
[1724725102656,1.55134372,63299.0,63298.0,0.81616522]
[1724725102894,1.54934372,63299.0,63298.0,0.81616522]
[1724725103146,1.55234372,63299.0,63298.0,0.81616522]
[1724725103375,1.55034372,63299.0,63298.0,0.81616522]
[1724725103622,1.54834372,63299.0,63298.0,0.81616522]
[1724725103868,1.54934372,63299.0,63298.0,0.81616522]
[1724725104098,1.54934372,63299.0,63298.0,1.13213022]
[1724725104497,1.54934372,63299.0,63298.0,0.81516522]
[1724725104754,1.54934372,63299.0,63298.0,0.59138322]
[1724725104755,1.55034372,63299.0,63298.0,0.59138322]
[1724725105017,1.70832372,63299.0,63298.0,0.50968322]
[1724725105197,2.02428372,63299.0,63298.0,0.50968322]
[1724725105439,2.02328372,63299.0,63298.0,0.44975747]
[1724725106305,2.02228372,63299.0,63298.0,0.44975747]
[1724725106746,2.02228372,63299.0,63298.0,0.45075747]
[1724725106961,2.02328372,63299.0,63298.0,0.45075747]
[1724725107170,2.02328372,63299.0,63298.0,0.44975747]
[1724725107381,2.02228372,63299.0,63298.0,0.44975747]
[1724725107624,2.02328372,63299.0,63298.0,0.50300322]
[1724725107842,2.33924372,63299.0,63298.0,0.50300322]
[1724725108076,2.33824372,63299.0,63298.0,0.50300322]
[1724725108550,2.34124372,63299.0,63298.0,0.50300322]
[1724725108977,2.34024372,63299.0,63298.0,0.50300322]
[1724725109183,2.34124372,63299.0,63298.0,0.50400322]
[1724725109605,2.33924372,63299.0,63298.0,0.50400322]
[1724725110017,2.34124372,63299.0,63298.0,0.50400322]
[1724725110227,2.34124372,63299.0,63298.0,0.45075747]
[1724725113097,2.41226196,63299.0,63298.0,0.45075747]
[1724725116416,2.41227811,63299.0,63298.0,0.45075747]
[1724725117493,2.34124372,63299.0,63298.0,0.45075747]
[1724725121363,2.43595624,63299.0,63298.0,0.45075747]
[1724725124039,2.75191624,63299.0,63298.0,0.45075747]
[1724725124278,2.99656528,63299.0,63298.0,0.45075747]
[1724725124505,3.00185276,63299.0,63298.0,0.45075747]
[1724725124753,3.12024342,63299.0,63298.0,0.45075747]
[1724725126176,3.00185276,63299.0,63298.0,0.45075747]
[1724725126404,3.14400555,63299.0,63298.0,0.45075747]
[1724725129750,3.00185276,63299.0,63298.0,0.45075747]
[1724725131567,3.143993,63299.0,63298.0,0.45075747]
[1724725131766,3.00185276,63299.0,63298.0,0.45075747]
[1724725137020,2.99885276,63299.0,63298.0,0.44975747]
[1724725137618,3.14099796,63299.0,63298.0,0.44975747]
[1724725138242,2.99885276,63299.0,63298.0,0.44975747]
[1724725138603,3.14899375,63299.0,63298.0,0.45075747]
[1724725139020,3.15699375,63299.0,63298.0,0.45175747]
[1724725139405,3.01485276,63299.0,63298.0,0.45175747]
[1724725139824,3.15698168,63299.0,63298.0,0.45175747]
[1724725140248,2.61042173,63299.0,63298.0,0.64829322]
[1724725140661,2.72866211,63299.0,63298.0,0.64829322]
[1724725140887,2.72865938,63299.0,63298.0,0.64829322]
[1724725142158,2.25652137,63299.0,63298.0,0.64829322]
[1724725142387,2.13809358,63299.0,63298.0,0.64829322]
[1724725142623,1.65889552,63299.0,63298.0,0.80727522]
[1724725142833,1.56415358,63299.0,63298.0,1.12324022]
[1724725143039,1.56415358,63299.0,63298.0,1.43920522]
[1724725143464,1.55615358,63299.0,63298.0,1.43820522]
[1724725143812,1.54915358,63299.0,63298.0,1.43720522]
[1724725144273,1.55215358,63299.0,63298.0,1.43720522]
[1724725144429,1.55215358,63299.0,63298.0,1.12124022]
[1724725144842,1.55215358,63299.0,63298.0,0.80527522]
[1724725146752,1.55215358,63299.0,63298.0,0.80427522]
[1724725147430,1.55215358,63299.0,63298.0,0.80527522]
[1724725148065,1.55215358,63299.0,63298.0,0.64629322]
[1724725148483,1.55215358,63299.0,63298.0,0.64729322]
[1724725157792,1.71013358,63299.0,63298.0,0.64729322]
[1724725158000,2.34205358,63299.0,63298.0,0.64629322]
[1724725158220,2.38941929,63299.0,63298.0,0.64629322]
[1724725158622,2.34205358,63299.0,63298.0,0.64629322]
[1724725162214,2.43679301,63299.0,63298.0,0.58735747]
[1724725162423,2.36681463,63299.0,63298.0,0.58735747]
[1724725170604,2.83895264,63299.0,63298.0,0.52675747]
[1724725171559,2.83795264,63299.0,63298.0,0.52675747]
[1724725172354,2.83495264,63299.0,63298.0,0.52675747]
[1724725172547,2.83495264,63299.0,63298.0,0.44975747]
[1724725172756,2.83795264,63299.0,63298.0,0.44975747]
[1724725172955,2.83995264,63299.0,63298.0,0.44975747]
[1724725173650,2.83695264,63299.0,63298.0,0.44975747]
[1724725173813,2.84195264,63299.0,63298.0,0.44975747]
[1724725174014,2.83995264,63299.0,63298.0,0.44975747]
[1724725174584,2.83795264,63299.0,63298.0,0.44975747]
[1724725176020,2.83495264,63299.0,63298.0,0.44975747]
[1724725176218,2.84995264,63299.0,63298.0,0.45175747]
[1724725183503,2.84995264,63299.0,63298.0,0.59145747]
[1724725184294,1.74589463,63299.0,63298.0,0.65060322]
[1724725184509,1.86434217,63299.0,63298.0,0.65060322]
[1724725184734,1.74589463,63299.0,63298.0,0.65060322]
[1724725185055,1.58791463,63299.0,63298.0,0.80958522]
[1724725185776,1.58091463,63299.0,63298.0,0.80858522]
[1724725186157,1.58791463,63299.0,63298.0,0.65160322]
[1724725186366,1.58791463,63299.0,63298.0,0.80958522]
[1724725186576,1.58091463,63299.0,63298.0,0.80858522]
[1724725187032,1.58491463,63299.0,63298.0,0.80858522]
[1724725187235,1.57691463,63299.0,63298.0,0.80758522]
[1724725187613,1.58291463,63299.0,63298.0,0.80758522]
[1724725190593,1.58291463,63299.0,63298.0,1.12355022]
[1724725191401,1.57291463,63299.0,63298.0,1.12355022]
[1724725191808,1.57891463,63299.0,63298.0,1.12355022]
[1724725192374,1.58291463,63299.0,63298.0,1.12355022]
[1724725192809,1.58791463,63299.0,63298.0,0.80758522]
[1724725193053,1.58791463,63299.0,63298.0,0.64860322]
[1724725193191,2.1092098,63299.0,63298.0,0.64860322]
[1724725193393,2.1092098,63299.0,63298.0,0.89605625]
[1724725193394,1.58291463,63299.0,63298.0,0.89605625]
[1724725193620,1.58491463,63299.0,63298.0,0.73807425]
[1724725194311,1.58491463,63299.0,63298.0,0.64960322]
[1724725198047,1.6322698,63299.0,63298.0,0.64960322]
[1724725198223,1.58491463,63299.0,63298.0,0.64960322]
[1724725198477,1.6322698,63299.0,63298.0,0.64960322]
[1724725198649,1.58491463,63299.0,63298.0,0.64960322]
[1724725198858,1.6322698,63299.0,63298.0,0.64960322]
[1724725199055,1.58491463,63299.0,63298.0,0.64960322]
[1724725199260,1.74289463,63299.0,63298.0,0.64860322]
[1724725199460,1.83764771,63299.0,63298.0,0.64860322]
[1724725199776,2.46956771,63299.0,63298.0,0.64860322]
[1724725199893,2.46949364,63299.0,63298.0,0.64860322]
[1724725200078,2.37481463,63299.0,63298.0,0.64860322]
[1724725200277,2.46949013,63299.0,63298.0,0.64860322]
[1724725200642,2.37481463,63299.0,63298.0,0.64860322]
[1724725200840,2.46948712,63299.0,63298.0,0.64860322]
[1724725201242,2.15352712,63299.0,63298.0,0.64860322]
[1724725202260,2.15352712,63299.0,63298.0,0.58945747]
[1724725202261,2.46948712,63299.0,63298.0,0.58945747]
[1724725203239,2.15352712,63299.0,63298.0,0.58945747]
[1724725204628,2.46948712,63299.0,63298.0,0.58945747]
[1724725204879,2.15352712,63299.0,63298.0,0.58945747]
[1724725205296,2.46948712,63299.0,63298.0,0.58945747]
[1724725205511,2.62566513,63299.0,63298.0,0.52705747]
[1724725205717,2.62566513,63299.0,63298.0,0.44975747]
[1724725205918,2.94162513,63299.0,63298.0,0.44975747]
[1724725206167,2.62566513,63299.0,63298.0,0.44975747]
[1724725206358,2.53099264,63299.0,63298.0,0.44975747]
[1724725207305,2.84695264,63299.0,63298.0,0.44975747]
[1724725207735,2.53099264,63299.0,63298.0,0.44975747]
[1724725208230,2.82219159,63299.0,63298.0,0.44975747]
[1724725210603,2.50623159,63299.0,63298.0,0.44975747]
[1724725210806,2.50623159,63299.0,63298.0,0.53105747]
[1724725211452,2.82219159,63299.0,63298.0,0.53105747]
[1724725212723,2.50623159,63299.0,63298.0,0.53105747]
[1724725213519,2.53099521,63299.0,63298.0,0.53105747]
[1724725213893,2.64937396,63299.0,63298.0,0.53105747]
[1724725221412,2.53099521,63299.0,63298.0,0.53105747]
[1724725224119,2.6493444,63299.0,63298.0,0.53105747]
[1724725224373,2.53099521,63299.0,63298.0,0.53105747]
[1724725227828,2.53099521,63299.0,63298.0,0.6849285]
[1724725227829,1.5849172,63299.0,63298.0,0.6849285]
[1724725228027,1.70326954,63299.0,63298.0,0.6849285]
[1724725228212,1.67960046,63299.0,63298.0,0.6849285]
[1724725228593,1.83758046,63299.0,63298.0,0.59645747]
[1724725228741,1.67960046,63299.0,63298.0,0.71244762]
[1724725230137,1.83758046,63299.0,63298.0,0.71244762]
[1724725230543,2.0588572,63299.0,63298.0,0.71244762]
[1724725231158,1.7428972,63299.0,63298.0,0.71244762]
[1724725231375,1.83760095,63299.0,63298.0,0.71244762]
[1724725231900,1.83760095,63299.0,63298.0,0.61241017]
[1724725232334,1.7428972,63299.0,63298.0,0.61241017]
[1724725232663,2.0588572,63299.0,63298.0,0.61241017]
[1724725233850,2.3748172,63299.0,63298.0,0.61241017]
[1724725234049,2.3748172,63299.0,63298.0,0.59645747]
[1724725234209,2.3748172,63299.0,63298.0,0.67204559]
[1724725234813,2.84695521,63299.0,63298.0,0.61239984]
[1724725235464,2.84695521,63299.0,63298.0,0.54699984]
[1724725237015,2.94695521,63299.0,63298.0,0.54699984]
[1724725237227,2.94695521,63299.0,63298.0,0.53105747]
[1724725237516,2.94695521,63299.0,63298.0,0.44975747]
[1724725237674,3.56112798,63299.0,63298.0,0.44975747]
[1724725237883,3.73500689,63299.0,63298.0,0.44975747]
[1724725238081,3.75800689,63299.0,63298.0,0.44975747]
[1724725238281,4.75304889,63299.0,63298.0,0.44975747]
[1724725238511,4.75104889,63299.0,63298.0,0.44975747]
[1724725238710,4.97415069,63299.0,63298.0,0.44975747]
[1724725238917,4.74104889,63299.0,63298.0,0.42550745]
[1724725239084,5.06500889,63299.0,63298.0,0.30011945]
[1724725239287,5.05700889,63299.0,63298.0,0.29911945]
[1724725239705,5.06500889,63299.0,63298.0,0.14213445]
[1724725239924,5.07000889,63299.0,63298.0,0.14113445]
[1724725240124,5.77000889,63299.0,63298.0,0.14113445]
[1724725240338,7.20998289,63299.0,63298.0,0.14213445]
[1724725240549,6.92498289,63299.0,63298.0,0.14213445]
[1724725240732,6.93398289,63299.0,63298.0,0.14313445]
[1724725241310,6.92498289,63299.0,63298.0,0.14213445]
[1724725241528,6.91998289,63299.0,63298.0,0.14213445]
[1724725241786,6.93398289,63299.0,63298.0,0.14213445]
[1724725242174,6.74197189,63299.0,63298.0,0.14213445]
[1724725242396,6.60149689,63299.0,63298.0,0.14213445]
[1724725242508,5.84985689,63299.0,63298.0,0.14213445]
[1724725242932,5.85285689,63299.0,63298.0,0.14113445]
[1724725243181,4.57565289,63299.0,63298.0,0.14113445]
[1724725243376,4.79441345,63299.0,63298.0,0.14113445]
[1724725243567,4.89688448,63299.0,63298.0,0.14113445]
[1724725243727,4.73731192,63299.0,63298.0,0.14113445]
[1724725243930,4.74631192,63299.0,63298.0,0.14213445]
[1724725244193,4.04631192,63299.0,63298.0,0.14213445]
[1724725244509,4.04631192,63299.0,63298.0,0.14113445]
[1724725244510,4.03731192,63299.0,63298.0,0.14113445]
[1724725244712,4.20584636,63299.0,63298.0,0.14213445]
[1724725245425,4.19184636,63299.0,63298.0,0.14213445]
[1724725245633,4.03231192,63299.0,63298.0,0.14213445]
[1724725245803,4.04631192,63299.0,63298.0,0.14213445]
[1724725246131,4.19684636,63299.0,63298.0,0.14113445]
[1724725246263,4.20584636,63299.0,63298.0,0.14213445]
[1724725246468,4.03231192,63299.0,63298.0,0.12325722]
[1724725246871,4.03731192,63299.0,63298.0,0.12225722]
[1724725247074,4.72331192,63299.0,63298.0,0.12225722]
[1724725247268,4.72331192,63299.0,63298.0,0.12325722]
[1724725247269,4.73231192,63299.0,63298.0,0.12325722]
[1724725247506,4.74631192,63299.0,63298.0,0.12325722]
[1724725247716,4.73731192,63299.0,63298.0,0.12225722]
[1724725248374,4.73731192,63299.0,63298.0,0.12325722]
[1724725248375,4.91281192,63299.0,63298.0,0.12325722]
[1724725248576,4.21281192,63299.0,63298.0,0.12325722]
[1724725249176,4.35818362,63299.0,63298.0,0.12325722]
[1724725249233,4.21281192,63299.0,63298.0,0.12325722]
[1724725249767,4.68808959,63299.0,63298.0,2.2e-07]
[1724725249954,4.33993792,63299.0,63298.0,2.2e-07]
[1724725250343,4.33993792,63299.0,63298.0,0.47394022]
[1724725250344,4.40328992,63299.0,63298.0,0.47394022]
[1724725250751,8.45754992,63299.0,63298.0,0.47394022]
[1724725251664,9.15754992,63299.0,63298.0,0.23871123]
[1724725251993,9.15754992,63299.0,63298.0,0.14597823]
[1724725252314,9.15754992,63299.0,63298.0,0.08278423]
[1724725252464,9.15754992,63299.0,63298.0,0.01959023]
[1724725252765,9.15754992,63299.0,63298.0,0.00090663]
[1724725253385,9.15754992,63299.0,63298.0,6.3e-07]
[1724725253526,6.38128992,63299.0,63298.0,0.44234363]
[1724725253710,6.38128992,63299.0,63298.0,0.34755263]
[1724725253905,12.37043592,63299.0,63298.0,0.34755263]
[1724725254152,12.04698292,63299.0,63298.0,0.34755263]
[1724725254357,11.55757292,63299.0,63298.0,0.22116463]
[1724725254900,11.55757292,63299.0,63298.0,0.18956763]
[1724725255422,11.55757292,63299.0,63298.0,0.15797063]
[1724725255555,11.55757292,63299.0,63298.0,0.03158263]
[1724725255731,10.09538592,63299.0,63298.0,0.03158263]
[1724725256102,10.05617592,63299.0,63298.0,0.03158263]
[1724725257518,6.38128992,63299.0,63298.0,0.03158263]
[1724725257712,10.05599892,63299.0,63298.0,0.03158263]
[1724725259498,9.73397992,63299.0,63298.0,0.03158263]
[1724725259726,9.41693992,63299.0,63298.0,0.03158263]
[1724725260142,9.41693992,63299.0,63298.0,6.3e-07]
[1724725260257,6.38128992,63299.0,63298.0,6.3e-07]
[1724725261106,6.38109978,63299.0,63298.0,6.3e-07]
[1724725264130,6.38109978,63299.0,63298.0,0.00090703]
[1724725264716,6.39594532,63299.0,63298.0,0.00090703]
[1724725264759,10.33322732,63299.0,63298.0,0.00090703]
[1724725265302,10.33322732,63299.0,63298.0,3e-08]
[1724725265548,6.39594532,63299.0,63298.0,0.47394003]
[1724725265850,6.41270822,63299.0,63298.0,0.47394003]
[1724725266273,11.19519922,63299.0,63298.0,0.47394003]
[1724725266390,11.13653022,63299.0,63298.0,0.47394003]
[1724725266638,11.13653022,63299.0,63298.0,0.26988332]
[1724725266639,11.27907065,63299.0,63298.0,0.26988332]
[1724725266839,10.85843632,63299.0,63298.0,0.26988332]
[1724725267260,10.83976732,63299.0,63298.0,0.23828632]
[1724725267621,10.83976732,63299.0,63298.0,0.20668932]
[1724725267914,10.99907065,63299.0,63298.0,0.20668932]
[1724725268089,10.46050332,63299.0,63298.0,0.20668932]
[1724725268290,6.39594532,63299.0,63298.0,0.20668932]
[1724725268694,9.57685732,63299.0,63298.0,0.20668932]
[1724725269102,9.42088632,63299.0,63298.0,0.20668932]
[1724725272041,9.58018965,63299.0,63298.0,0.20668932]
[1724725272510,9.58029489,63299.0,63298.0,0.20668932]
[1724725273021,9.42088632,63299.0,63298.0,0.20668932]
[1724725273503,8.80787532,63299.0,63298.0,0.28318932]
[1724725274546,8.96727831,63299.0,63298.0,0.28318932]
[1724725275361,8.80787532,63299.0,63298.0,0.28318932]
[1724725275942,8.73210132,63299.0,63298.0,0.28318932]
[1724725276212,8.73210132,63299.0,63298.0,0.28409572]
[1724725277539,8.96456402,63299.0,63298.0,0.28409572]
[1724725277596,8.74895163,63299.0,63298.0,0.28409572]
[1724725280674,7.52935363,63299.0,63298.0,0.28409572]
[1724725281631,7.76329417,63299.0,63298.0,0.28409572]
[1724725282284,7.76329417,63299.0,63298.0,0.20759572]
[1724725284180,7.76329417,63299.0,63283.0,0.0009064]
[1724725284181,1.422157,63284.0,63283.0,0.0009064]
[1724725284381,1.96059604,63284.0,63283.0,0.0009064]
[1724725284587,1.96059604,63284.0,63283.0,0.4749664]
[1724725284807,1.96059604,63284.0,63283.0,0.5406664]
[1724725284808,2.32440737,63284.0,63283.0,0.5406664]
[1724725285012,2.32440737,63284.0,63283.0,0.55719859]
[1724725285219,2.48053905,63284.0,63283.0,0.55719859]
[1724725285653,2.49453905,63284.0,63283.0,0.55719859]
[1724725286081,2.48053905,63284.0,63283.0,0.55719859]
[1724725286537,2.50853905,63284.0,63283.0,0.55719859]
[1724725286713,2.50853905,63284.0,63283.0,0.5406664]
[1724725286958,2.49453905,63284.0,63283.0,0.55719859]
[1724725287180,2.50853905,63284.0,63283.0,0.55719859]
[1724725287460,3.19453905,63284.0,63283.0,0.63309859]
[1724725287867,3.20853905,63284.0,63283.0,0.6165664]
[1724725288088,3.18053905,63284.0,63283.0,0.6165664]
[1724725288224,3.20853905,63284.0,63283.0,0.5508664]
[1724725288837,1.580225,63282.0,63271.0,0.0009064]
[1724725289040,0.56937904,63279.0,63271.0,0.0009064]
[1724725289339,3.71835878,63279.0,63271.0,0.0009064]
[1724725289535,4.82248304,63279.0,63271.0,0.0009064]
[1724725289812,4.9825339,63279.0,63278.0,0.4749964]
[1724725290020,5.6825339,63279.0,63278.0,0.4749964]
[1724725290387,5.37194158,63279.0,63278.0,0.4749964]
[1724725290441,5.21189072,63279.0,63278.0,0.4749964]